bitfinex/quotes_ETHUSD_20250721
["timestamp","ask_amount","ask_price","bid_price","bid_amount"]
[1753135579660,0.02666611,3752.1,3752.0,4.065]
[1753135583097,0.46526611,3752.1,3751.8,0.001]
[1753135583280,0.46526611,3752.1,3751.9,4.064]
[1753135583281,0.4386,3752.0,3751.9,4.064]
[1753135584603,0.82486611,3752.1,3751.9,4.064]
[1753135584958,1.26346611,3752.1,3751.9,4.064]
[1753135585593,6.13286628,3752.2,3752.0,2.6652359]
[1753135585753,3.0,3752.5,3752.0,3.10738016]
[1753135586092,0.02666611,3752.4,3752.0,3.10738016]
[1753135586404,0.1328,3752.2,3752.1,3.10732878]
[1753135588757,1e-08,3752.6,3752.5,2.66489007]
[1753135589103,1e-08,3752.6,3752.5,6.72889007]
[1753135589258,1e-08,3752.6,3752.5,7.17109007]
[1753135590096,0.13280001,3752.6,3752.5,7.97569007]
[1753135593806,0.13280001,3752.6,3752.5,7.53349007]
[1753135594103,0.13280001,3752.6,3752.5,9.58975628]
[1753135594104,1e-08,3752.6,3752.5,9.58975628]
[1753135597187,1e-08,3752.6,3752.5,1.86866621]
[1753135597414,1e-08,3752.6,3752.5,4.064]
[1753135597415,0.43860001,3752.6,3752.5,4.064]
[1753135597600,1e-08,3752.6,3752.5,6.72889007]
[1753135597910,1e-08,3752.6,3752.5,7.17109007]
[1753135599294,1e-08,3752.6,3752.5,6.72889007]
[1753135599613,1e-08,3752.6,3752.1,2.66515091]
[1753135599778,3.10342201,3752.6,3752.0,2.66517653]
[1753135599983,0.46526611,3752.5,3752.2,4.063]
[1753135600184,0.4386,3752.4,3752.3,4.063]
[1753135600814,0.4386,3752.4,3751.9,4.69]
[1753135601016,0.02666611,3752.3,3752.0,4.063]
[1753135601310,6.13286628,3752.5,3752.0,4.063]
[1753135601311,0.4386,3752.2,3752.0,4.063]
[1753135602016,7.42783239,3752.1,3751.8,0.001]
[1753135602201,2.6652452,3752.0,3751.9,4.063]
[1753135602514,3.13051131,3752.0,3751.9,4.063]
[1753135602719,2.69191131,3752.0,3751.9,4.063]
[1753135603014,3.13051131,3752.0,3751.9,4.063]
[1753135603183,5.66531623,3751.9,3751.8,0.001]
[1753135603510,6.10391623,3751.9,3751.8,4.064]
[1753135604488,6.94198234,3751.9,3751.8,0.001]
[1753135604689,6.91531623,3751.9,3751.8,0.001]
[1753135605422,4.25,3751.9,3751.8,0.001]
[1753135605620,4.27666611,3751.9,3751.8,0.001]
[1753135606016,3.83806611,3751.9,3751.8,0.001]
[1753135606205,3.0,3751.9,3751.8,4.065]
[1753135606789,3.4386,3751.9,3751.8,4.065]
[1753135607324,3.46526611,3751.9,3751.8,4.065]
[1753135607623,6.13058234,3751.9,3751.8,0.001]
[1753135607819,3.46526611,3751.9,3751.8,0.001]
[1753135608115,3.46526611,3751.9,3751.8,4.065]
[1753135608316,6.13058234,3751.9,3751.8,0.001]
[1753135608888,6.92778234,3751.9,3751.8,0.001]
[1753135609116,6.90111623,3751.9,3751.8,0.001]
[1753135616041,4.264,3751.9,3751.8,0.001]
[1753135616248,4.29066611,3751.9,3751.8,0.001]
[1753135616400,6.95598234,3751.9,3751.8,0.001]
[1753135616606,6.92931623,3751.9,3751.8,0.001]
[1753135618247,3.7972,3751.9,3751.8,0.001]
[1753135618542,3.82386611,3751.9,3751.8,0.001]
[1753135619121,4.29066611,3751.9,3751.8,0.001]
[1753135620450,6.95598234,3751.9,3751.8,0.001]
[1753135620652,6.92931623,3751.9,3751.8,0.001]
[1753135622630,13.06218251,3751.9,3751.8,0.001]
[1753135623832,3.0,3751.9,3751.8,0.001]
[1753135628367,0.02666611,3752.2,3751.8,0.001]
[1753135628566,0.02666611,3752.3,3751.8,0.001]
[1753135628757,3.02666611,3752.3,3751.8,0.001]
[1753135629160,2.69170912,3752.3,3751.8,0.001]
[1753135629668,3.15850912,3752.3,3751.8,0.001]
[1753135629970,0.02666611,3752.3,3751.8,0.001]
[1753135630264,0.02866611,3752.5,3752.0,0.8181]
[1753135630482,3.0,3752.3,3752.0,0.8181]
[1753135630686,0.002,3752.5,3752.1,0.439]
[1753135630837,0.002,3752.5,3752.1,3.1041639]
[1753135631039,0.002,3752.5,3752.2,1.2199]
[1753135631352,0.002,3752.5,3752.3,2.66502172]
[1753135631750,0.002,3752.5,3752.2,0.7809]
[1753135631751,0.002,3752.5,3752.4,0.439]
[1753135631949,0.002,3752.5,3752.4,4.503]
[1753135632161,0.002,3752.5,3752.2,0.7809]
[1753135632368,0.002,3752.5,3752.3,4.064]
[1753135635578,0.002,3752.5,3752.3,4.503]
[1753135636155,0.002,3752.5,3752.3,4.064]
[1753135637647,3.002,3752.5,3751.9,0.8088]
[1753135637847,0.1328,3752.2,3752.0,4.063]
[1753135638184,6.15953239,3752.3,3752.0,4.063]
[1753135638781,0.02666611,3752.3,3752.0,4.063]
[1753135638943,0.02866611,3752.5,3752.0,7.48825721]
[1753135639147,0.02866611,3752.5,3752.1,0.4349]
[1753135639349,0.002,3752.5,3752.1,3.10006688]
[1753135639660,0.002,3752.5,3752.2,0.4349]
[1753135639969,0.002,3752.5,3752.3,2.66496426]
[1753135640171,0.002,3752.5,3752.4,4.063]
[1753135640494,0.002,3752.5,3752.4,5.97950149]
[1753135640703,0.002,3752.5,3752.4,8.64446258]
[1753135640845,0.002,3752.5,3752.4,9.19446258]
[1753135641350,0.002,3752.5,3752.4,9.32726258]
[1753135641584,0.002,3752.5,3752.4,14.01726258]
[1753135644345,0.002,3752.5,3752.4,20.15012886]
[1753135644609,1e-08,3752.5,3752.4,31.32721786]
[1753135644744,1e-08,3752.5,3752.4,14.01726258]
[1753135644946,1e-08,3752.5,3752.4,13.33446258]
[1753135645184,1e-08,3752.5,3752.4,12.22676109]
[1753135645351,1e-08,3752.5,3752.4,8.16376109]
[1753135645552,1e-08,3752.5,3752.4,12.66166109]
[1753135646652,1e-08,3752.5,3752.4,7.97166109]
[1753135647197,1e-08,3752.5,3752.4,7.53676109]
[1753135648653,1e-08,3752.5,3752.4,7.53576109]
[1753135650672,1e-08,3752.5,3752.4,4.062]
[1753135651197,1e-08,3752.5,3752.4,6.72696109]
[1753135651682,1e-08,3752.5,3752.4,6.7536107]
[1753135652568,1e-08,3752.5,3752.4,8.95681139]
[1753135652769,1e-08,3752.5,3752.4,9.69546178]
[1753135653025,1e-08,3752.5,3752.4,10.24546178]
[1753135653507,1e-08,3752.5,3752.4,10.37826178]
[1753135653681,1e-08,3752.5,3752.4,15.06826178]
[1753135654806,1e-08,3752.5,3752.4,15.26575687]
[1753135657418,1e-08,3752.6,3752.5,3.2246343]
[1753135657592,1e-08,3752.6,3752.5,6.84293632]
[1753135657793,1e-08,3752.6,3752.5,6.81628742]
[1753135660531,1e-08,3752.6,3752.5,11.50628742]
[1753135660693,1e-08,3752.6,3752.5,16.64458142]
[1753135663101,1e-08,3752.6,3752.5,19.64458142]
[1753135666619,1e-08,3752.6,3752.5,23.70558142]
[1753135666822,1e-08,3752.9,3752.8,6.97217704]
[1753135667015,1e-08,3753.0,3752.9,3.97210603]
[1753135667213,1e-08,3753.0,3752.9,9.12825209]
[1753135667451,1e-08,3753.0,3752.9,9.10160603]
[1753135668147,1e-08,3753.0,3752.9,13.16260603]
[1753135668357,1e-08,3753.0,3752.9,15.79013996]
[1753135670220,1e-08,3753.0,3752.9,11.10013996]
[1753135675537,1e-08,3753.0,3752.9,7.03913996]
[1753135675733,1e-08,3753.0,3752.9,10.65963996]
[1753135678038,1e-08,3753.0,3752.9,11.09913996]
[1753135679074,1e-08,3753.0,3752.9,9.90213996]
[1753135679229,1e-08,3753.0,3752.9,6.72460603]
[1753135679430,0.43960001,3753.0,3752.9,6.75125209]
[1753135679664,1e-08,3753.0,3752.9,6.75125209]
[1753135679861,1e-08,3753.0,3752.9,7.30125209]
[1753135680058,1e-08,3753.0,3752.9,7.27460603]
[1753135680268,1e-08,3753.0,3752.9,7.40740603]
[1753135681184,1e-08,3753.0,3752.9,3.34740603]
[1753135681391,1e-08,3753.0,3752.9,7.43405209]
[1753135681685,1e-08,3753.0,3752.9,7.40740603]
[1753135682256,1e-08,3753.0,3752.9,9.32009013]
[1753135689700,1e-08,3753.0,3752.9,10.10389013]
[1753135689897,1e-08,3753.0,3752.9,10.54339013]
[1753135690194,1e-08,3753.0,3752.9,13.54339013]
[1753135693902,1e-08,3753.0,3752.9,18.23339013]
[1753135695072,1e-08,3753.0,3752.9,9.95009013]
[1753135695271,0.43960001,3753.0,3752.9,12.09640603]
[1753135695503,0.43960001,3753.0,3752.9,8.03740603]
[1753135695704,0.43960001,3753.0,3752.9,11.54640603]
[1753135696206,0.43960001,3753.0,3752.9,12.09640603]
[1753135698207,0.43960001,3753.0,3752.9,8.03740603]
[1753135698574,0.43960001,3753.0,3752.9,12.09640603]
[1753135699907,0.43960001,3753.0,3752.9,7.40640603]
[1753135705700,1e-08,3753.0,3752.9,7.40640603]
[1753135706011,1e-08,3753.0,3752.9,9.83178013]
[1753135706210,1e-08,3753.0,3752.9,11.04168013]
[1753135706409,1e-08,3753.0,3752.9,10.60378013]
[1753135706706,1e-08,3753.0,3752.9,9.83078013]
[1753135710818,1e-08,3753.0,3752.9,9.83178013]
[1753135717027,1e-08,3753.0,3752.9,10.26968013]
[1753135718214,1e-08,3753.0,3752.9,9.83178013]
[1753135718414,1e-08,3753.0,3752.9,13.26968013]
[1753135719223,1e-08,3753.0,3752.9,44.72575889]
[1753135720829,1e-08,3753.0,3752.9,44.38871842]
[1753135721806,1e-08,3753.0,3752.9,44.05268013]
[1753135722011,1e-08,3753.0,3752.9,48.74268013]
[1753135722212,1e-08,3753.0,3752.9,18.74268013]
[1753135722413,1e-08,3753.0,3752.9,48.74268013]
[1753135724235,0.002,3753.6,3752.9,48.74268013]
[1753135724236,0.002,3754.2,3753.6,3.21410912]
[1753135724531,0.002,3754.2,3753.6,44.55065696]
[1753135724732,0.002,3754.2,3753.6,44.52401587]
[1753135724932,0.002,3754.2,3753.6,21.9142694]
[1753135725637,0.002,3754.2,3753.6,21.9753914]
[1753135725835,0.002,3754.2,3753.6,22.88608433]
[1753135726137,0.7826,3754.0,3753.6,12.83215805]
[1753135726312,1.2192,3754.0,3753.6,12.83215805]
[1753135726513,1.2192,3754.0,3753.6,5.97444305]
[1753135726812,0.002,3754.2,3753.6,10.05708414]
[1753135727123,0.002,3754.2,3753.6,15.45097205]
[1753135728551,0.002,3754.2,3753.6,15.64965917]
[1753135728845,0.002,3754.2,3753.6,10.68203017]
[1753135729140,0.002,3754.2,3753.6,29.97845717]
[1753135729338,0.002,3754.2,3753.6,13.66379317]
[1753135729543,0.002,3754.2,3753.6,14.91913017]
[1753135729709,0.4552,3754.0,3753.6,14.91913017]
[1753135732916,0.4552,3754.0,3753.6,14.71944305]
[1753135733118,0.4572,3753.7,3753.6,12.09190912]
[1753135733550,0.4572,3753.7,3753.6,8.03690912]
[1753135733922,0.4572,3753.7,3753.6,2.66410912]
[1753135734132,0.4572,3753.7,3753.6,6.71910912]
[1753135737424,0.4572,3753.7,3753.6,2.66410912]
[1753135737623,0.4572,3753.7,3753.6,6.71910912]
[1753135745031,0.4572,3753.7,3753.6,2.66410912]
[1753135745253,0.4572,3753.7,3753.6,6.71910912]
[1753135745735,0.4572,3753.7,3753.6,2.66410912]
[1753135746062,0.4572,3753.7,3753.6,6.71910912]
[1753135747966,0.002,3753.7,3753.6,6.71910912]
[1753135748166,0.002,3753.7,3753.6,9.04028318]
[1753135748342,0.002,3753.7,3753.6,9.62598318]
[1753135748544,0.002,3753.8,3753.7,32.66403814]
[1753135748763,0.002,3753.8,3753.7,31.81423714]
[1753135748964,0.002,3753.8,3753.7,31.18834714]
[1753135749151,0.002,3753.8,3753.7,33.81588107]
[1753135749962,0.02000001,3753.9,3753.7,33.81588107]
[1753135749963,1e-08,3753.9,3753.8,3.21396717]
[1753135750148,0.002,3754.4,3754.3,3.21361239]
[1753135750339,0.002,3754.4,3754.3,7.42704851]
[1753135750539,0.002,3754.4,3754.3,7.40041239]
[1753135750734,0.002,3754.4,3754.3,9.0653997]
[1753135752553,1e-08,3754.5,3754.4,3.21354144]
[1753135752874,1e-08,3754.6,3754.5,3.2134705]
[1753135753077,1e-08,3754.6,3754.5,7.4002705]
[1753135753274,1e-08,3754.6,3754.5,7.8531705]
[1753135753484,1e-08,3754.6,3754.5,10.40666705]
[1753135753977,1e-08,3754.6,3754.5,6.35266705]
[1753135754176,1e-08,3754.6,3754.5,9.98040175]
[1753135754378,1e-08,3754.6,3754.5,9.95376705]
[1753135756451,1e-08,3754.6,3754.5,10.40666705]
[1753135759676,1e-08,3754.6,3754.5,16.53953333]
[1753135762066,1e-08,3754.6,3754.5,16.08663333]
[1753135762757,1e-08,3754.6,3754.5,9.95376705]
[1753135765258,1e-08,3754.6,3754.5,10.41446705]
[1753135765460,1e-08,3754.6,3754.5,9.95376705]
[1753135765661,1e-08,3754.6,3754.5,16.54733333]
[1753135766390,1e-08,3754.6,3754.5,16.08663333]
[1753135767695,1e-08,3754.6,3754.5,20.77663333]
[1753135767882,1e-08,3754.6,3754.5,24.23733333]
[1753135769808,1e-08,3754.6,3754.5,18.10446705]
[1753135770009,1e-08,3754.6,3754.5,24.23733333]
[1753135770871,1e-08,3754.9,3754.8,2.66325769]
[1753135771076,1e-08,3754.9,3754.8,24.75089319]
[1753135771310,1e-08,3754.9,3754.8,40.80568262]
[1753135771467,1e-08,3754.9,3754.8,45.16078162]
[1753135771667,1e-08,3754.9,3754.8,38.11379762]
[1753135771869,1e-08,3754.9,3754.8,23.99781162]
[1753135774179,1e-08,3754.9,3754.8,30.1306779]
[1753135775492,1e-08,3754.9,3754.8,10.11359162]
[1753135775811,1e-08,3754.9,3754.8,11.53705769]
[1753135775812,0.45320001,3754.9,3754.8,11.53705769]
[1753135776168,0.45320001,3754.9,3754.8,12.08705769]
[1753135776373,0.45520001,3754.9,3754.8,12.08705769]
[1753135776582,0.45520001,3754.9,3754.8,7.39705769]
[1753135777528,0.45520001,3754.9,3754.8,2.66325769]
[1753135777814,1.24670001,3754.9,3754.7,2.6633099]
[1753135777974,1.24670001,3754.9,3754.8,4.051]
[1753135777975,1.37950001,3754.9,3754.8,4.051]
[1753135778178,1.24670001,3754.9,3754.8,6.71425769]
[1753135778608,1.24670001,3754.9,3754.8,7.26425769]
[1753135778807,0.45520001,3754.9,3754.8,8.05829845]
[1753135779306,0.45520001,3754.9,3754.8,7.39705769]
[1753135779934,0.00200001,3754.9,3754.8,7.39705769]
[1753135780232,0.00200001,3754.9,3754.8,7.85775769]
[1753135781182,0.00200001,3754.9,3754.8,7.39705769]
[1753135781622,0.00200001,3754.9,3754.8,38.62565769]
[1753135781911,1e-08,3754.9,3754.8,35.55648362]
[1753135782681,1e-08,3754.9,3754.8,40.24648362]
[1753135783829,1e-08,3754.9,3754.8,27.14835062]
[1753135785233,1e-08,3754.9,3754.8,23.09735062]
[1753135785436,1e-08,3754.9,3754.8,18.94219162]
[1753135785805,1e-08,3754.9,3754.8,31.2776019]
[1753135789443,1e-08,3755.3,3755.2,3.212974]
[1753135789628,1e-08,3755.3,3755.2,40.4476731]
[1753135789821,1e-08,3755.3,3755.2,47.06566036]
[1753135790235,1e-08,3755.3,3755.2,47.26993312]
[1753135790538,1e-08,3755.3,3755.2,45.08139712]
[1753135791443,1e-08,3755.3,3755.2,39.52242712]
[1753135791639,1e-08,3755.3,3755.2,39.13607312]
[1753135791845,1e-08,3755.3,3755.2,34.73607312]
[1753135792512,1e-08,3755.3,3755.2,27.35146336]
[1753135794441,1e-08,3755.3,3755.2,25.67064736]
[1753135794642,1e-08,3755.3,3755.2,25.24224736]
[1753135794852,1e-08,3755.3,3755.2,25.43857292]
[1753135795226,1e-08,3755.3,3755.2,29.36067292]
[1753135795623,1e-08,3755.3,3755.2,22.47524092]
[1753135795915,1e-08,3755.3,3755.2,16.31447692]
[1753135796159,0.43700001,3755.3,3755.2,2.795774]
[1753135796341,0.43700001,3755.3,3755.2,7.394774]
[1753135797683,1e-08,3755.3,3755.2,7.394774]
[1753135798461,1e-08,3755.3,3755.2,11.08535276]
[1753135798653,1e-08,3755.3,3755.2,11.51375276]
[1753135798856,1e-08,3755.3,3755.2,14.03391532]
[1753135799151,1e-08,3755.3,3755.2,29.66126332]
[1753135799354,0.002,3755.4,3755.3,43.03634813]
[1753135799355,1e-08,3755.4,3755.3,43.03634813]
[1753135799751,1e-08,3755.4,3755.3,43.59412785]
[1753135799944,0.002,3756.1,3756.0,9.34527309]
[1753135800146,1e-08,3756.1,3756.0,13.52707309]
[1753135800543,1e-08,3756.1,3756.0,9.47807309]
[1753135800757,0.43700001,3756.1,3756.0,7.39320681]
[1753135800954,1e-08,3756.1,3756.0,7.39320681]
[1753135801258,1e-08,3756.1,3756.0,8.39877637]
[1753135801462,0.43700001,3756.1,3756.0,8.39877637]
[1753135802075,0.43700001,3756.1,3756.0,4.35077637]
[1753135802364,0.43700001,3756.1,3756.0,7.41983087]
[1753135802569,0.43700001,3756.1,3756.0,7.39320681]
[1753135802764,1e-08,3756.1,3756.0,7.39320681]
[1753135803133,1e-08,3756.1,3756.0,3.34520681]
[1753135803466,1e-08,3756.1,3756.0,7.41983087]
[1753135803671,1e-08,3756.1,3756.0,9.09189541]
[1753135804835,0.43700001,3756.1,3756.0,9.09189541]
[1753135805041,0.43700001,3756.1,3756.0,7.39320681]
[1753135805980,0.43700001,3756.1,3756.0,3.34520681]
[1753135806202,0.43700001,3756.1,3756.0,7.39320681]
[1753135806907,0.43700001,3756.1,3756.0,13.77820681]
[1753135813564,0.43700001,3756.1,3756.0,9.73020681]
[1753135813770,0.43700001,3756.1,3756.0,13.77720681]
[1753135813971,1.23840001,3756.1,3756.0,13.77720681]
[1753135816105,0.43700001,3756.1,3756.0,13.77720681]
[1753135816405,1e-08,3756.1,3756.0,15.89017637]
[1753135816573,1e-08,3756.2,3756.0,23.58017637]
[1753135816773,1e-08,3756.2,3756.1,36.66735928]
[1753135816972,1e-08,3756.2,3756.1,30.86316993]
[1753135817175,1e-08,3756.2,3756.1,33.49070386]
[1753135817695,1e-08,3756.2,3756.1,8.83986986]
[1753135818008,1e-08,3756.2,3756.1,11.03301986]
[1753135818177,1e-08,3756.2,3756.1,8.83986986]
[1753135821219,1e-08,3756.2,3756.1,13.52986986]
[1753135821879,1e-08,3756.2,3756.1,10.52986986]
[1753135822080,1e-08,3756.2,3756.1,13.08168886]
[1753135822816,1e-08,3756.2,3756.1,10.52986986]
[1753135823205,0.45750001,3756.2,3756.1,14.57586986]
[1753135824298,1e-08,3756.2,3756.1,14.57586986]
[1753135827397,0.45750001,3756.2,3756.1,7.90233593]
[1753135827603,0.45750001,3756.2,3756.1,11.94833593]
[1753135827934,1e-08,3756.2,3756.1,11.94833593]
[1753135831767,1e-08,3756.2,3756.1,18.08120221]
[1753135831944,1e-08,3756.2,3756.1,20.70873614]
[1753135835545,1e-08,3756.2,3756.1,14.57586986]
[1753135842854,1e-08,3756.2,3756.1,34.26059414]
[1753135843654,1e-08,3756.2,3756.1,28.12772786]
[1753135843971,1e-08,3756.2,3756.1,27.17709486]
[1753135844529,1e-08,3756.2,3756.1,14.57586986]
[1753135844762,1e-08,3756.2,3756.1,29.60409486]
[1753135845067,1e-08,3756.2,3756.1,27.40409486]
[1753135847740,1e-08,3756.2,3756.1,25.53605986]
[1753135848781,1e-08,3756.2,3756.1,24.12154386]
[1753135848972,1e-08,3756.2,3756.1,14.57386986]
[1753135850669,1e-08,3756.2,3756.1,10.52986986]
[1753135850979,1e-08,3756.2,3756.1,14.57386986]
[1753135851651,1e-08,3756.2,3756.1,17.57386986]
[1753135851846,1e-08,3756.2,3756.1,18.00626986]
[1753135852247,1e-08,3756.2,3756.1,41.72307486]
[1753135852452,1e-08,3757.0,3756.9,0.55]
[1753135852660,1e-08,3757.0,3756.9,45.40122561]
[1753135852852,1e-08,3757.0,3756.9,46.20554621]
[1753135853187,1e-08,3757.7,3757.6,3.97137315]
[1753135853359,1e-08,3757.7,3757.6,14.30765216]
[1753135853563,1e-08,3757.7,3757.6,14.28103943]
[1753135853856,1e-08,3757.7,3757.6,16.45091907]
[1753135854447,1e-08,3757.7,3757.6,16.01851907]
[1753135854654,1e-08,3757.9,3757.8,6.21113151]
[1753135854850,1e-08,3757.9,3757.8,40.72476551]
[1753135855070,1e-08,3757.9,3757.8,41.86419413]
[1753135857294,1e-08,3757.9,3757.8,28.16849713]
[1753135857450,1e-08,3757.9,3757.8,25.13449144]
[1753135857656,1e-08,3757.9,3757.8,25.56689144]
[1753135857993,1e-08,3757.9,3757.8,24.52086544]
[1753135858194,1e-08,3757.9,3757.8,39.43500144]
[1753135860755,1e-08,3757.9,3757.8,38.09421044]
[1753135860955,1e-08,3757.9,3757.8,19.91266544]
[1753135861156,0.45990001,3757.9,3757.8,11.074]
[1753135861357,1.21110001,3757.9,3757.8,6.384]
[1753135861791,1.21110001,3757.9,3757.8,10.426]
[1753135862389,1.21310001,3757.9,3757.8,10.426]
[1753135862961,1.23976612,3757.9,3757.8,10.426]
[1753135864007,1.21310001,3757.9,3757.8,10.426]
[1753135864211,0.7512,3757.8,3757.3,2.66146802]
[1753135864494,0.7512,3757.6,3757.5,2.66134397]
[1753135864860,1.2111,3757.6,3757.5,2.66134397]
[1753135866115,1.2111,3757.6,3757.4,6.70339032]
[1753135866395,0.4599,3757.5,3757.4,4.042]
[1753135867371,0.4599,3757.5,3757.4,6.7034148]
[1753135867987,0.4599,3757.5,3757.4,4.042]
[1753135868193,0.4599,3757.5,3757.1,0.55]
[1753135868405,0.4599,3757.5,3757.2,4.042]
[1753135869076,0.4599,3757.5,3757.2,2.66152762]
[1753135869376,0.4599,3757.5,3757.3,4.042]
[1753135869703,0.4599,3757.5,3757.3,6.70346606]
[1753135870307,0.4599,3757.5,3757.3,4.042]
[1753135871066,0.5927,3757.5,3757.3,4.042]
[1753135871503,0.4599,3757.4,3757.3,4.042]
[1753135871901,0.4599,3757.4,3756.8,6.5148]
[1753135871902,3.48363678,3757.3,3756.8,6.382]
[1753135872074,3.48378674,3757.1,3756.9,4.042]
[1753135872403,0.48656611,3757.0,3756.9,4.042]
[1753135875813,3.14826427,3757.0,3756.9,4.042]
[1753135875979,0.48656611,3757.0,3756.9,4.042]
[1753135877616,0.8221,3757.1,3756.9,4.042]
[1753135877776,0.1328,3757.3,3757.0,2.66169816]
[1753135877977,0.4341,3757.2,3757.1,4.042]
[1753135878621,0.4341,3757.2,3757.1,6.70362731]
[1753135879117,0.4341,3757.2,3757.1,4.042]
[1753135879305,0.4341,3757.2,3757.1,6.70362731]
[1753135880423,0.4341,3757.2,3757.1,4.042]
[1753135881019,0.4341,3757.2,3756.8,9.04381483]
[1753135881230,0.46076611,3757.1,3756.9,4.042]
[1753135881720,0.8868,3756.9,3756.8,6.382]
[1753135881888,1.34756611,3756.9,3756.8,10.424]
[1753135882086,1.34756611,3756.9,3756.8,6.382]
[1753135882287,4.00933512,3756.9,3756.8,6.382]
[1753135882626,4.00933512,3756.9,3756.8,10.424]
[1753135883430,1.34756611,3756.9,3756.8,4.042]
[1753135883641,1.3209,3756.9,3756.8,4.042]
[1753135884118,0.1328,3756.9,3756.8,6.70383986]
[1753135884306,0.1328,3756.9,3756.8,7.64041602]
[1753135884505,0.4341,3757.5,3756.9,0.55]
[1753135884709,0.4341,3757.5,3757.4,2.6614148]
[1753135884907,0.4341,3757.5,3757.4,6.7034148]
[1753135886634,0.4341,3757.5,3757.4,4.042]
[1753135886832,0.4341,3757.5,3757.4,6.7034148]
[1753135887504,0.754,3757.6,3757.5,2.66134397]
[1753135887710,0.754,3757.6,3757.4,6.70339627]
[1753135887909,1.1881,3757.6,3757.5,2.66134397]
[1753135889336,1.1881,3757.6,3757.4,4.042]
[1753135889337,0.1328,3757.5,3757.4,4.042]
[1753135889500,0.15946611,3757.5,3757.4,4.042]
[1753135889835,0.59356611,3757.5,3757.4,6.7034148]
[1753135890032,0.59356611,3757.5,3757.3,2.66145821]
[1753135890223,0.15946611,3757.5,3757.4,4.042]
[1753135890406,0.1328,3757.5,3757.4,6.7034148]
[1753135890818,0.5669,3757.5,3757.4,6.7034148]
[1753135891334,0.5669,3757.5,3757.4,4.042]
[1753135891933,0.5669,3757.5,3756.8,0.551]
[1753135892149,0.1328,3757.3,3757.1,2.66162055]
[1753135892337,0.02666611,3757.4,3757.2,4.042]
[1753135892936,0.4341,3757.3,3757.2,4.042]
[1753135893733,0.4341,3757.3,3757.2,6.70355647]
[1753135895309,0.02666611,3757.5,3757.3,2.66144514]
[1753135895509,0.4341,3757.5,3757.4,4.042]
[1753135895730,0.78066611,3757.6,3757.4,4.042]
[1753135896518,0.4341,3757.5,3757.4,4.042]
[1753135900157,0.1328,3757.4,3757.2,2.66155609]
[1753135900453,0.754,3757.6,3757.3,4.042]
[1753135900655,0.754,3757.6,3757.4,4.042]
[1753135900820,0.4341,3757.5,3757.4,4.042]
[1753135901949,0.4341,3757.5,3757.3,2.66148008]
[1753135902151,0.4341,3757.5,3757.4,4.042]
[1753135902455,0.46076611,3757.5,3757.4,4.042]
[1753135904486,0.1328,3757.4,3757.0,2.66166722]
[1753135904689,0.02666611,3757.3,3757.1,6.70259727]
[1753135904868,0.02666611,3757.3,3757.2,6.70255647]
[1753135904869,0.4341,3757.3,3757.2,6.70255647]
[1753135905564,0.02666611,3757.5,3757.2,6.70255647]
[1753135905565,0.46076611,3757.5,3757.2,6.70255647]
[1753135905886,0.4341,3757.4,3757.2,6.70255647]
[1753135906456,0.4341,3757.4,3757.2,6.70253365]
[1753135906649,0.02666611,3757.3,3757.2,6.70253365]
[1753135906856,0.754,3757.6,3757.2,6.70253365]
[1753135906857,0.02666611,3757.5,3757.2,2.66153365]
[1753135907076,0.02666611,3757.5,3757.3,6.70242801]
[1753135907280,0.78066611,3757.6,3757.3,6.70242801]
[1753135907795,0.02666611,3757.8,3757.6,2.66123459]
[1753135908089,0.78226612,3757.9,3757.7,4.041]
[1753135908251,0.75560001,3757.9,3757.7,4.041]
[1753135908458,1.22340001,3757.9,3757.7,6.70218613]
[1753135908753,0.46980001,3757.9,3757.7,6.70218613]
[1753135909172,0.02666611,3757.8,3757.7,6.70218613]
[1753135910103,0.46980001,3757.9,3757.7,4.041]
[1753135910397,0.49446611,3757.8,3757.7,4.041]
[1753135920484,0.02666611,3757.8,3757.7,6.70220233]
[1753135920686,0.00200001,3757.9,3757.8,2.66113151]
[1753135921320,0.00200001,3757.9,3757.8,5.47407707]
[1753135921467,0.00200001,3757.9,3757.8,6.37487249]
[1753135921665,0.00200001,3757.9,3757.8,11.06487249]
[1753135921923,0.00200001,3757.9,3757.8,11.03826118]
[1753135922296,0.02,3758.9,3758.5,0.55]
[1753135922505,0.02,3758.9,3758.8,3.21042353]
[1753135922675,0.02,3758.9,3758.8,8.21262776]
[1753135922870,0.02,3758.9,3758.8,8.63802353]
[1753135927228,0.02,3758.9,3758.8,6.70042353]
[1753135927429,0.02,3758.9,3758.8,7.70242353]
[1753135927737,0.02,3758.9,3758.8,9.3181405]
[1753135929826,0.02,3758.9,3758.8,8.8661405]
[1753135931851,0.02,3758.9,3758.8,9.3181405]
[1753135932143,0.02,3758.9,3758.8,5.2781405]
[1753135932450,0.02,3758.9,3758.8,7.70142353]
[1753135935758,0.02,3758.9,3758.8,7.24842353]
[1753135938321,0.02,3758.9,3758.8,7.70582353]
[1753135939571,0.02,3758.9,3758.8,7.24842353]
[1753135943175,0.471,3758.9,3758.5,4.69]
[1753135943337,0.1328,3758.7,3758.6,6.69852667]
[1753135943537,0.02,3758.9,3758.6,8.47567934]
[1753135943742,0.1528,3758.9,3758.8,2.66042353]
[1753135944084,0.1528,3758.9,3758.8,6.69842353]
[1753135944452,0.6038,3758.9,3758.8,6.69842353]
[1753135944651,0.6038,3758.9,3758.5,2.66059228]
[1753135944856,0.6038,3758.9,3758.6,4.038]
[1753135944857,0.451,3758.8,3758.6,4.038]
[1753135945176,0.451,3758.7,3758.6,6.69855904]
[1753135945373,0.02,3758.9,3758.8,2.66042353]
[1753135945374,0.1528,3758.9,3758.8,2.66042353]
[1753135945577,0.1528,3758.9,3758.8,6.69842353]
[1753135945881,0.6038,3758.9,3758.8,6.69842353]
[1753135946446,0.6038,3758.9,3758.8,2.66042353]
[1753135946669,0.6038,3758.9,3758.8,6.69842353]
[1753135947177,0.1528,3758.9,3758.8,6.69842353]